[Event "*** Titled Tuesday Blitz"]
[Site "Chess.com"]
[Date "2020.05.12"]
[Round "1"]
[White "FMOlexandrProhorov"]
[Black "Philosopherrr"]
[Result "1/2-1/2"]
[WhiteElo "2086"]
[BlackElo "2488"]
[TimeControl "180+1"]
[EndTime "10:03:56 PDT"]
[Termination "Game drawn by agreement"]

1. e4 {[%clk 0:02:55.8]} 1... e5 {[%clk 0:02:59.7]} 2. Nf3 {[%clk 0:02:55]} 2...
Nc6 {[%clk 0:02:59.7]} 3. Bb5 {[%clk 0:02:54.2]} 3... a6 {[%clk 0:02:58.8]} 4.
Bxc6 {[%clk 0:02:54]} 4... dxc6 {[%clk 0:02:58.6]} 5. O-O {[%clk 0:02:52.9]}
5... Qf6 {[%clk 0:02:56.7]} 6. h3 {[%clk 0:02:52.1]} 6... Bd6 {[%clk 0:02:56.1]}
7. b3 {[%clk 0:02:52.1]} 7... Ne7 {[%clk 0:02:56.3]} 8. Bb2 {[%clk 0:02:52.4]}
8... Ng6 {[%clk 0:02:55.8]} 9. d4 {[%clk 0:02:45.9]} 9... O-O {[%clk 0:02:54.9]}
10. Re1 {[%clk 0:02:44.3]} 10... Re8 {[%clk 0:02:54]} 11. Na3 {[%clk 0:02:42.1]}
11... b5 {[%clk 0:02:53.1]} 12. c4 {[%clk 0:02:41]} 12... exd4 {[%clk
0:02:36.7]} 13. Bxd4 {[%clk 0:02:37.9]} 13... Ne5 {[%clk 0:02:37]} 14. Nxe5
{[%clk 0:02:25.5]} 14... Bxe5 {[%clk 0:02:36.4]} 15. Nc2 {[%clk 0:02:20.3]}
15... Be6 {[%clk 0:02:31.4]} 16. cxb5 {[%clk 0:02:09.5]} 16... axb5 {[%clk
0:02:29.4]} 17. Bxe5 {[%clk 0:02:06.6]} 17... Qxe5 {[%clk 0:02:29.2]} 18. Qd4
{[%clk 0:02:06.9]} 18... f6 {[%clk 0:02:20.7]} 19. Red1 {[%clk 0:02:00.3]} 19...
c5 {[%clk 0:02:20.3]} 20. Qxe5 {[%clk 0:01:57.3]} 20... fxe5 {[%clk 0:02:21.2]}
21. Ne3 {[%clk 0:01:52.4]} 21... Red8 {[%clk 0:02:13.8]} 22. Nd5 {[%clk
0:01:49.2]} 22... Kf7 {[%clk 0:02:08.9]} 23. a4 {[%clk 0:01:46.6]} 23... Bxd5
{[%clk 0:02:04.5]} 24. exd5 {[%clk 0:01:41.3]} 24... c4 {[%clk 0:02:03]} 25.
axb5 {[%clk 0:01:35.2]} 25... Rxa1 {[%clk 0:02:02.5]} 26. Rxa1 {[%clk 0:01:33]}
26... cxb3 {[%clk 0:02:02.9]} 27. Rb1 {[%clk 0:01:28.2]} 27... Rxd5 {[%clk
0:02:02.7]} 28. Rxb3 {[%clk 0:01:28]} 28... Rd1+ {[%clk 0:02:02.5]} 29. Kh2
{[%clk 0:01:27.8]} 29... Rc1 {[%clk 0:02:02.9]} 30. b6 {[%clk 0:01:24]} 30...
cxb6 {[%clk 0:02:03.1]} 31. Rxb6 {[%clk 0:01:24.1]} 1/2-1/2

[Event "*** Titled Tuesday Blitz"]
[Site "Chess.com"]
[Date "2020.05.12"]
[Round "1"]
[White "Manukyan_Artak"]
[Black "EugeneRougon"]
[Result "0-1"]
[WhiteElo "2400"]
[BlackElo "2763"]
[TimeControl "180+1"]
[EndTime "10:03:57 PDT"]
[Termination "EugeneRougon won by resignation"]

1. e4 {[%clk 0:03:00.9]} 1... e6 {[%clk 0:02:58]} 2. d4 {[%clk 0:03:00.7]} 2...
d5 {[%clk 0:02:58.4]} 3. e5 {[%clk 0:03:00.8]} 3... c5 {[%clk 0:02:58.4]} 4. c3
{[%clk 0:03:01.6]} 4... Nc6 {[%clk 0:02:57.8]} 5. Nf3 {[%clk 0:03:01.9]} 5...
Bd7 {[%clk 0:02:57.5]} 6. Bd3 {[%clk 0:03:00.8]} 6... cxd4 {[%clk 0:02:49.8]} 7.
cxd4 {[%clk 0:03:01.7]} 7... Qb6 {[%clk 0:02:49.8]} 8. Nc3 {[%clk 0:02:54.1]}
8... Nxd4 {[%clk 0:02:45]} 9. Nxd4 {[%clk 0:02:49.9]} 9... Qxd4 {[%clk
0:02:45.9]} 10. O-O {[%clk 0:02:50.8]} 10... a6 {[%clk 0:02:43.1]} 11. Re1
{[%clk 0:02:44.6]} 11... Ne7 {[%clk 0:02:34.7]} 12. Qb3 {[%clk 0:02:37.9]} 12...
Qxd3 {[%clk 0:02:30]} 13. Qxb7 {[%clk 0:02:37.7]} 13... Bc6 {[%clk 0:01:59.4]}
14. Qc7 {[%clk 0:02:34.8]} 14... Rc8 {[%clk 0:01:58]} 15. Qa7 {[%clk 0:02:34.7]}
15... Nf5 {[%clk 0:01:51.9]} 16. Bg5 {[%clk 0:02:31]} 16... h6 {[%clk
0:01:36.6]} 17. Rad1 {[%clk 0:02:29.5]} 17... Qc4 {[%clk 0:01:36.5]} 18. Be3
{[%clk 0:02:22.6]} 18... Nxe3 {[%clk 0:01:22.4]} 19. Qxe3 {[%clk 0:02:23.5]}
19... Bc5 {[%clk 0:01:20]} 20. Qg3 {[%clk 0:02:23.5]} 20... O-O {[%clk
0:01:19.9]} 21. Rc1 {[%clk 0:02:20.2]} 21... Qb4 {[%clk 0:01:17.6]} 22. Re2
{[%clk 0:02:14.1]} 22... Bb7 {[%clk 0:01:17.3]} 23. h4 {[%clk 0:02:12.7]} 23...
Be7 {[%clk 0:01:13.4]} 24. Rec2 {[%clk 0:02:09.6]} 24... Qxh4 {[%clk 0:01:12.5]}
25. Qe3 {[%clk 0:02:07.3]} 25... d4 {[%clk 0:01:12.2]} 0-1

[Event "*** Titled Tuesday Blitz"]
[Site "Chess.com"]
[Date "2020.05.12"]
[Round "1"]
[White "StephenDedalus83"]
[Black "sjevtic"]
[Result "1-0"]
[WhiteElo "2717"]
[BlackElo "2378"]
[TimeControl "180+1"]
[EndTime "10:04:04 PDT"]
[Termination "StephenDedalus83 won by resignation"]

1. e4 {[%clk 0:03:00.5]} 1... d5 {[%clk 0:03:00.1]} 2. exd5 {[%clk 0:02:59.9]}
2... Qxd5 {[%clk 0:03:01]} 3. Nc3 {[%clk 0:02:58.4]} 3... Qa5 {[%clk 0:03:01]}
4. d4 {[%clk 0:02:58.4]} 4... Nf6 {[%clk 0:03:01]} 5. Bc4 {[%clk 0:02:58.8]}
5... c6 {[%clk 0:03:01.3]} 6. Bd2 {[%clk 0:02:59.2]} 6... Bf5 {[%clk 0:03:01.1]}
7. Qe2 {[%clk 0:02:56.8]} 7... e6 {[%clk 0:03:01]} 8. Nd5 {[%clk 0:02:54.6]}
8... Qd8 {[%clk 0:02:57.8]} 9. Nxf6+ {[%clk 0:02:54.5]} 9... Qxf6 {[%clk
0:02:45.3]} 10. Nf3 {[%clk 0:02:53.6]} 10... Bg4 {[%clk 0:02:32.5]} 11. O-O-O
{[%clk 0:02:52.1]} 11... Bxf3 {[%clk 0:02:29.8]} 12. gxf3 {[%clk 0:02:51.1]}
12... Nd7 {[%clk 0:02:29.6]} 13. d5 {[%clk 0:02:47.3]} 13... cxd5 {[%clk
0:02:00.5]} 14. Bxd5 {[%clk 0:02:46.5]} 14... O-O-O {[%clk 0:01:57.8]} 15. Be4
{[%clk 0:02:45.4]} 15... Nc5 {[%clk 0:01:39.2]} 16. h4 {[%clk 0:02:42.5]} 16...
Nxe4 {[%clk 0:01:36.6]} 17. fxe4 {[%clk 0:02:41.6]} 17... h6 {[%clk 0:01:05.4]}
18. Kb1 {[%clk 0:02:33.2]} 18... Rg8 {[%clk 0:00:54]} 19. Qc4+ {[%clk
0:02:27.6]} 19... Kb8 {[%clk 0:00:53.5]} 20. Bf4+ {[%clk 0:02:27.2]} 20... Ka8
{[%clk 0:00:47.3]} 21. Be5 {[%clk 0:02:26.6]} 21... Qe7 {[%clk 0:00:45]} 22. Rd3
{[%clk 0:02:13.2]} 22... Rxd3 {[%clk 0:00:44.7]} 1-0

[Event "*** Titled Tuesday Blitz"]
[Site "Chess.com"]
[Date "2020.05.12"]
[Round "1"]
[White "Zufi1811"]
[Black "wonderfultime"]
[Result "0-1"]
[WhiteElo "2459"]
[BlackElo "2956"]
[TimeControl "180+1"]
[EndTime "10:04:06 PDT"]
[Termination "wonderfultime won by resignation"]

1. e4 {[%clk 0:03:00.9]} 1... c5 {[%clk 0:02:55.3]} 2. Nf3 {[%clk 0:03:00.3]}
2... Nf6 {[%clk 0:02:55.3]} 3. e5 {[%clk 0:02:59.9]} 3... Nd5 {[%clk 0:02:54]}
4. Nc3 {[%clk 0:03:00.4]} 4... e6 {[%clk 0:02:48.6]} 5. Nxd5 {[%clk 0:02:59.9]}
5... exd5 {[%clk 0:02:49.5]} 6. d4 {[%clk 0:03:00.5]} 6... Nc6 {[%clk 0:02:50]}
7. c3 {[%clk 0:02:27.8]} 7... d6 {[%clk 0:02:49.9]} 8. Bb5 {[%clk 0:02:25.8]}
8... cxd4 {[%clk 0:02:49.2]} 9. Nxd4 {[%clk 0:02:21.9]} 9... Bd7 {[%clk
0:02:49.2]} 10. exd6 {[%clk 0:02:18.6]} 10... Bxd6 {[%clk 0:02:50.1]} 11. O-O
{[%clk 0:02:18.4]} 11... O-O {[%clk 0:02:49.1]} 12. Be3 {[%clk 0:01:56.5]} 12...
Re8 {[%clk 0:02:41.3]} 13. Bd3 {[%clk 0:01:52.6]} 13... Ne5 {[%clk 0:02:32]} 14.
Be2 {[%clk 0:01:50.6]} 14... Nc4 {[%clk 0:02:23.4]} 15. Bc1 {[%clk 0:01:48.1]}
15... Qf6 {[%clk 0:02:10.1]} 16. Bf3 {[%clk 0:01:46.9]} 16... Nb6 {[%clk
0:01:52.4]} 17. Nc2 {[%clk 0:01:34.9]} 17... Bb5 {[%clk 0:01:41.7]} 18. Re1
{[%clk 0:01:34.9]} 18... Rxe1+ {[%clk 0:01:41.2]} 19. Qxe1 {[%clk 0:01:34]}
19... Re8 {[%clk 0:01:41.6]} 20. Ne3 {[%clk 0:01:30.7]} 20... Qf4 {[%clk
0:01:37.6]} 0-1

[Event "*** Titled Tuesday Blitz"]
[Site "Chess.com"]
[Date "2020.05.12"]
[Round "1"]
[White "TengisChess"]
[Black "Michaelson_11"]
[Result "1-0"]
[WhiteElo "2485"]
[BlackElo "1998"]
[TimeControl "180+1"]
[EndTime "10:04:11 PDT"]
[Termination "TengisChess won by resignation"]

1. Nf3 {[%clk 0:02:57.3]} 1... d5 {[%clk 0:02:59.3]} 2. b3 {[%clk 0:02:56.7]}
2... Bg4 {[%clk 0:02:44.5]} 3. Bb2 {[%clk 0:02:55.7]} 3... c6 {[%clk 0:02:37.9]}
4. Ne5 {[%clk 0:02:54.9]} 4... Bf5 {[%clk 0:02:37.2]} 5. g4 {[%clk 0:02:54.6]}
5... Bg6 {[%clk 0:02:35.4]} 6. h4 {[%clk 0:02:53.3]} 6... f6 {[%clk 0:02:32.9]}
7. Nxg6 {[%clk 0:02:52.3]} 7... hxg6 {[%clk 0:02:33.8]} 8. e3 {[%clk 0:02:52.3]}
8... e5 {[%clk 0:02:32.1]} 9. c4 {[%clk 0:02:50.5]} 9... Bd6 {[%clk 0:02:29.1]}
10. Qc2 {[%clk 0:02:49.6]} 10... Ne7 {[%clk 0:02:29]} 11. Nc3 {[%clk 0:02:45.2]}
11... Qd7 {[%clk 0:02:23]} 12. Be2 {[%clk 0:02:41.6]} 12... Na6 {[%clk
0:01:43.2]} 13. a3 {[%clk 0:02:39.3]} 13... Nc7 {[%clk 0:01:31.8]} 14. b4 {[%clk
0:02:38.1]} 14... dxc4 {[%clk 0:01:23]} 15. Bxc4 {[%clk 0:02:36.9]} 15... Qxg4
{[%clk 0:01:22.6]} 16. Be2 {[%clk 0:02:32.4]} 16... Qe6 {[%clk 0:01:15.2]} 17.
O-O-O {[%clk 0:02:28.4]} 17... O-O-O {[%clk 0:01:14.3]} 18. Ne4 {[%clk
0:02:22.2]} 18... Qa2 {[%clk 0:01:05.5]} 19. Bc4 {[%clk 0:02:15.7]} 19... Qxc4
{[%clk 0:00:42.3]} 20. Qxc4 {[%clk 0:02:16.6]} 20... f5 {[%clk 0:00:41.5]} 21.
Nxd6+ {[%clk 0:02:15.1]} 1-0

[Event "*** Titled Tuesday Blitz"]
[Site "Chess.com"]
[Date "2020.05.12"]
[Round "1"]
[White "EnergeticHay"]
[Black "RestartingChess"]
[Result "0-1"]
[WhiteElo "2153"]
[BlackElo "2515"]
[TimeControl "180+1"]
[EndTime "10:04:13 PDT"]
[Termination "RestartingChess won by resignation"]

1. e4 {[%clk 0:03:00.9]} 1... d5 {[%clk 0:02:59.7]} 2. exd5 {[%clk 0:03:00.8]}
2... Qxd5 {[%clk 0:03:00.6]} 3. Nc3 {[%clk 0:03:00.8]} 3... Qd6 {[%clk
0:02:59.6]} 4. d4 {[%clk 0:03:00.7]} 4... Nf6 {[%clk 0:02:57.9]} 5. Nf3 {[%clk
0:02:57.7]} 5... Nc6 {[%clk 0:02:58]} 6. h3 {[%clk 0:02:56.9]} 6... a6 {[%clk
0:02:57.4]} 7. Be2 {[%clk 0:02:56]} 7... Bf5 {[%clk 0:02:57.6]} 8. O-O {[%clk
0:02:56.4]} 8... e6 {[%clk 0:02:57.5]} 9. Be3 {[%clk 0:02:51.2]} 9... Be7 {[%clk
0:02:57.1]} 10. Qd2 {[%clk 0:02:51.5]} 10... O-O {[%clk 0:02:55.4]} 11. Bd3
{[%clk 0:02:51.6]} 11... Bg6 {[%clk 0:02:50.5]} 12. Ne2 {[%clk 0:02:47.1]} 12...
Nd5 {[%clk 0:02:42.8]} 13. c4 {[%clk 0:02:39.4]} 13... Nxe3 {[%clk 0:02:43]} 14.
Qxe3 {[%clk 0:02:35.3]} 14... Bxd3 {[%clk 0:02:30.8]} 15. Qxd3 {[%clk
0:02:35.4]} 15... Bf6 {[%clk 0:02:30]} 16. Rad1 {[%clk 0:02:29.5]} 16... Rad8
{[%clk 0:02:27.7]} 17. Qe4 {[%clk 0:02:25]} 17... Qb4 {[%clk 0:02:23.8]} 18. b3
{[%clk 0:02:17.6]} 18... h6 {[%clk 0:02:17.2]} 19. Rd2 {[%clk 0:02:07.9]} 19...
Rfe8 {[%clk 0:01:59.1]} 20. Rfd1 {[%clk 0:02:07.3]} 20... a5 {[%clk 0:01:48]}
21. g4 {[%clk 0:01:56.8]} 21... a4 {[%clk 0:01:46.6]} 22. Rd3 {[%clk 0:01:54.4]}
22... axb3 {[%clk 0:01:41.4]} 23. axb3 {[%clk 0:01:55.3]} 23... b5 {[%clk
0:01:40.7]} 24. Qxc6 {[%clk 0:01:54]} 24... bxc4 {[%clk 0:01:40.8]} 25. Qxc4
{[%clk 0:01:53.1]} 25... Qb7 {[%clk 0:01:39]} 26. Rc1 {[%clk 0:01:51.5]} 26...
Re7 {[%clk 0:01:36]} 27. Qc6 {[%clk 0:01:50.3]} 27... Qa7 {[%clk 0:01:33.6]} 28.
Qa4 {[%clk 0:01:46.4]} 28... Qb7 {[%clk 0:01:33.1]} 29. Kg2 {[%clk 0:01:43.5]}
29... e5 {[%clk 0:01:31.4]} 30. dxe5 {[%clk 0:01:42.7]} 30... Rxd3 {[%clk
0:01:31]} 31. exf6 {[%clk 0:01:42.9]} 31... Qxf3+ {[%clk 0:01:31.4]} 32. Kg1
{[%clk 0:01:40.7]} 32... Rxe2 {[%clk 0:01:25.4]} 0-1

[Event "*** Titled Tuesday Blitz"]
[Site "Chess.com"]
[Date "2020.05.12"]
[Round "1"]
[White "WIDBIFS"]
[Black "venus02"]
[Result "1-0"]
[WhiteElo "2724"]
[BlackElo "2376"]
[TimeControl "180+1"]
[EndTime "10:04:16 PDT"]
[Termination "WIDBIFS won by resignation"]

1. d4 {[%clk 0:03:00.9]} 1... b6 {[%clk 0:02:48]} 2. Bf4 {[%clk 0:02:59.4]} 2...
Bb7 {[%clk 0:02:47.9]} 3. e3 {[%clk 0:02:59.5]} 3... e6 {[%clk 0:02:48.5]} 4.
Nf3 {[%clk 0:02:57.2]} 4... d6 {[%clk 0:02:49.4]} 5. Bc4 {[%clk 0:02:53.2]} 5...
Nd7 {[%clk 0:02:50.3]} 6. O-O {[%clk 0:02:52.4]} 6... Be7 {[%clk 0:02:45.3]} 7.
Qe2 {[%clk 0:02:52.2]} 7... a6 {[%clk 0:02:45.3]} 8. a4 {[%clk 0:02:49.7]} 8...
Ngf6 {[%clk 0:02:44.6]} 9. Nbd2 {[%clk 0:02:49.2]} 9... d5 {[%clk 0:02:43.7]}
10. Bd3 {[%clk 0:02:48]} 10... c5 {[%clk 0:02:44.2]} 11. c3 {[%clk 0:02:48.1]}
11... c4 {[%clk 0:02:44]} 12. Bc2 {[%clk 0:02:48.1]} 12... Nf8 {[%clk
0:02:44.2]} 13. e4 {[%clk 0:02:40.5]} 13... dxe4 {[%clk 0:02:43.5]} 14. Ng5
{[%clk 0:02:26.8]} 14... Ng6 {[%clk 0:02:39]} 15. Bg3 {[%clk 0:02:26.4]} 15...
Qd5 {[%clk 0:02:30.3]} 16. Ngxe4 {[%clk 0:02:24.5]} 16... Rc8 {[%clk 0:02:26.4]}
17. Nxf6+ {[%clk 0:02:16.6]} 17... Bxf6 {[%clk 0:02:25.7]} 18. Be4 {[%clk
0:02:17.2]} 18... Qd7 {[%clk 0:02:25.8]} 19. Bxb7 {[%clk 0:02:17.2]} 19... Qxb7
{[%clk 0:02:25.5]} 20. Nxc4 {[%clk 0:02:17.5]} 20... O-O {[%clk 0:02:24.2]} 21.
Nd6 {[%clk 0:02:16.8]} 21... Qa8 {[%clk 0:02:19.2]} 22. Nxc8 {[%clk 0:02:16.6]}
22... Rxc8 {[%clk 0:02:19.9]} 23. Rad1 {[%clk 0:02:12]} 23... Rd8 {[%clk
0:02:17]} 24. Rfe1 {[%clk 0:02:11.8]} 24... Qb7 {[%clk 0:02:16.8]} 25. Qc4
{[%clk 0:02:11.3]} 25... Ne7 {[%clk 0:02:15.7]} 26. Qc7 {[%clk 0:02:10.5]} 26...
Rd7 {[%clk 0:02:12.7]} 27. Qxb7 {[%clk 0:02:08.8]} 27... Rxb7 {[%clk 0:02:13.6]}
28. c4 {[%clk 0:02:08.9]} 28... Rd7 {[%clk 0:02:12.2]} 29. d5 {[%clk 0:02:08.4]}
29... exd5 {[%clk 0:02:10.2]} 30. Rxd5 {[%clk 0:02:00.4]} 30... Rxd5 {[%clk
0:02:04.7]} 31. cxd5 {[%clk 0:02:00.3]} 31... Kf8 {[%clk 0:02:02.9]} 32. Bd6
{[%clk 0:01:58.1]} 32... g6 {[%clk 0:01:58.1]} 33. b4 {[%clk 0:01:57.8]} 33...
b5 {[%clk 0:01:57.5]} 34. axb5 {[%clk 0:01:57.4]} 34... axb5 {[%clk 0:01:57.6]}
35. f4 {[%clk 0:01:57]} 35... Bd4+ {[%clk 0:01:50.4]} 36. Kf1 {[%clk 0:01:56.9]}
36... Bf6 {[%clk 0:01:48.7]} 37. g4 {[%clk 0:01:56.4]} 37... Bh4 {[%clk
0:01:48]} 38. Re2 {[%clk 0:01:55.8]} 38... h6 {[%clk 0:01:46]} 39. g5 {[%clk
0:01:56]} 39... hxg5 {[%clk 0:01:45.7]} 40. Bxe7+ {[%clk 0:01:55.9]} 1-0

[Event "*** Titled Tuesday Blitz"]
[Site "Chess.com"]
[Date "2020.05.12"]
[Round "1"]
[White "BakaPG"]
[Black "barbara25"]
[Result "1-0"]
[WhiteElo "2628"]
[BlackElo "2306"]
[TimeControl "180+1"]
[EndTime "10:04:18 PDT"]
[Termination "BakaPG won by resignation"]

1. e4 {[%clk 0:03:00.9]} 1... c5 {[%clk 0:02:58.6]} 2. Nf3 {[%clk 0:02:59.9]}
2... d6 {[%clk 0:02:58.6]} 3. d4 {[%clk 0:02:59.4]} 3... cxd4 {[%clk 0:02:58.7]}
4. Nxd4 {[%clk 0:03:00]} 4... Nf6 {[%clk 0:02:58.9]} 5. Nc3 {[%clk 0:03:00.4]}
5... a6 {[%clk 0:02:58]} 6. f3 {[%clk 0:02:57.5]} 6... e5 {[%clk 0:02:57.8]} 7.
Nb3 {[%clk 0:02:56.3]} 7... Be7 {[%clk 0:02:57.9]} 8. Be3 {[%clk 0:02:52.3]}
8... Be6 {[%clk 0:02:57.5]} 9. Qd2 {[%clk 0:02:51.1]} 9... Nbd7 {[%clk
0:02:57.3]} 10. O-O-O {[%clk 0:02:51.5]} 10... h5 {[%clk 0:02:57.6]} 11. Kb1
{[%clk 0:02:50.3]} 11... Rc8 {[%clk 0:02:56.3]} 12. g3 {[%clk 0:02:48.6]} 12...
b5 {[%clk 0:02:52.9]} 13. a3 {[%clk 0:02:46.7]} 13... Qc7 {[%clk 0:02:52.5]} 14.
f4 {[%clk 0:02:45.3]} 14... Ng4 {[%clk 0:02:50]} 15. Bg1 {[%clk 0:02:43.9]}
15... Ngf6 {[%clk 0:02:16.8]} 16. Bg2 {[%clk 0:02:35]} 16... Nc5 {[%clk
0:02:06.7]} 17. Nxc5 {[%clk 0:02:32.2]} 17... dxc5 {[%clk 0:02:06.4]} 18. Nd5
{[%clk 0:02:31.6]} 18... Bxd5 {[%clk 0:01:57]} 19. exd5 {[%clk 0:02:31.6]} 19...
Rd8 {[%clk 0:01:26.4]} 20. fxe5 {[%clk 0:02:24.2]} 20... Qxe5 {[%clk 0:01:24.3]}
21. Be3 {[%clk 0:02:23.8]} 21... Bd6 {[%clk 0:01:08.3]} 22. Bf4 {[%clk
0:02:12.9]} 22... Qf5 {[%clk 0:01:07.5]} 23. Rhe1+ {[%clk 0:02:10.5]} 23... Kf8
{[%clk 0:01:06.6]} 24. Qe3 {[%clk 0:02:01.5]} 24... g6 {[%clk 0:00:53.2]} 25.
Bxd6+ {[%clk 0:02:00.5]} 25... Rxd6 {[%clk 0:00:52.5]} 26. Qe7+ {[%clk
0:01:59.8]} 1-0

[Event "*** Titled Tuesday Blitz"]
[Site "Chess.com"]
[Date "2020.05.12"]
[Round "1"]
[White "catalin009"]
[Black "Infernal_XaM"]
[Result "0-1"]
[WhiteElo "2442"]
[BlackElo "2870"]
[TimeControl "180+1"]
[EndTime "10:04:20 PDT"]
[Termination "Infernal_XaM won by resignation"]

1. Nf3 {[%clk 0:03:00.1]} 1... d5 {[%clk 0:02:58.8]} 2. g3 {[%clk 0:03:00.8]}
2... c6 {[%clk 0:02:58.9]} 3. Bg2 {[%clk 0:03:01.2]} 3... Nf6 {[%clk 0:02:59.4]}
4. O-O {[%clk 0:03:01.4]} 4... Bg4 {[%clk 0:02:58.5]} 5. d3 {[%clk 0:03:00.8]}
5... Nbd7 {[%clk 0:02:57.5]} 6. Qe1 {[%clk 0:03:01.4]} 6... Bxf3 {[%clk
0:02:54.8]} 7. Bxf3 {[%clk 0:02:59.1]} 7... h5 {[%clk 0:02:55.4]} 8. h4 {[%clk
0:02:56.9]} 8... e6 {[%clk 0:02:51.8]} 9. Bg5 {[%clk 0:02:51.3]} 9... Qb6 {[%clk
0:02:50]} 10. b3 {[%clk 0:02:30.3]} 10... Bd6 {[%clk 0:02:48.1]} 11. Kg2 {[%clk
0:02:06.4]} 11... Ne5 {[%clk 0:02:46.4]} 12. Nd2 {[%clk 0:02:01.4]} 12... Nfg4
{[%clk 0:02:43.4]} 13. e4 {[%clk 0:01:46.9]} 13... f6 {[%clk 0:02:41.4]} 14. Be3
{[%clk 0:01:27.6]} 14... Nxe3+ {[%clk 0:02:34.7]} 15. fxe3 {[%clk 0:01:27.9]}
15... d4 {[%clk 0:02:31.2]} 16. exd4 {[%clk 0:01:17.7]} 16... Qxd4 {[%clk
0:02:30.8]} 17. Qe2 {[%clk 0:01:18.2]} 17... O-O-O {[%clk 0:02:23.8]} 18. Bxh5
{[%clk 0:01:08.4]} 18... Qc3 {[%clk 0:02:10.9]} 19. Nc4 {[%clk 0:00:56.6]} 19...
Nxc4 {[%clk 0:02:10.2]} 20. bxc4 {[%clk 0:00:56.8]} 20... Qe5 {[%clk 0:02:10.8]}
21. g4 {[%clk 0:00:38.9]} 21... Qg3+ {[%clk 0:02:08.8]} 22. Kh1 {[%clk
0:00:39.4]} 22... Qxh4+ {[%clk 0:02:09.4]} 23. Kg2 {[%clk 0:00:39.3]} 23... Qh2+
{[%clk 0:02:09.2]} 0-1

[Event "*** Titled Tuesday Blitz"]
[Site "Chess.com"]
[Date "2020.05.12"]
[Round "1"]
[White "nitpicker"]
[Black "MiroVlasenko"]
[Result "0-1"]
[WhiteElo "2286"]
[BlackElo "2607"]
[TimeControl "180+1"]
[EndTime "10:04:20 PDT"]
[Termination "MiroVlasenko won by resignation"]

1. d4 {[%clk 0:01:36.3]} 1... f5 {[%clk 0:02:57.7]} 2. c4 {[%clk 0:01:34.1]}
2... Nf6 {[%clk 0:02:57.5]} 3. g3 {[%clk 0:01:28.4]} 3... g6 {[%clk 0:02:56.6]}
4. Bg2 {[%clk 0:01:28.6]} 4... Bg7 {[%clk 0:02:56.4]} 5. Nf3 {[%clk 0:01:29]}
5... O-O {[%clk 0:02:55.3]} 6. O-O {[%clk 0:01:29.5]} 6... d6 {[%clk 0:02:54.1]}
7. Nc3 {[%clk 0:01:29.4]} 7... Qe8 {[%clk 0:02:53]} 8. Rb1 {[%clk 0:01:27.4]}
8... e5 {[%clk 0:02:50.4]} 9. dxe5 {[%clk 0:01:26.2]} 9... dxe5 {[%clk
0:02:49.9]} 10. e4 {[%clk 0:01:24.9]} 10... f4 {[%clk 0:02:48.5]} 11. b4 {[%clk
0:01:17.7]} 11... Bg4 {[%clk 0:02:38.8]} 12. Qb3 {[%clk 0:01:15.1]} 12... Nc6
{[%clk 0:02:31.9]} 13. Re1 {[%clk 0:00:57.6]} 13... Bxf3 {[%clk 0:02:11.7]} 14.
Bxf3 {[%clk 0:00:58.5]} 14... Nd4 {[%clk 0:02:11.9]} 15. Qd1 {[%clk 0:00:57.8]}
15... Rd8 {[%clk 0:02:11.3]} 16. Kh1 {[%clk 0:00:43.1]} 16... Qe6 {[%clk
0:02:06.2]} 17. Bg2 {[%clk 0:00:40.6]} 17... Qxc4 {[%clk 0:02:04.9]} 18. Bf1
{[%clk 0:00:37.3]} 18... Qxc3 {[%clk 0:02:02.5]} 0-1

[Event "*** Titled Tuesday Blitz"]
[Site "Chess.com"]
[Date "2020.05.12"]
[Round "1"]
[White "shrek4life02"]
[Black "manuellarrea"]
[Result "1-0"]
[WhiteElo "2535"]
[BlackElo "2193"]
[TimeControl "180+1"]
[EndTime "10:04:25 PDT"]
[Termination "shrek4life02 won by resignation"]

1. d4 {[%clk 0:03:00.9]} 1... Nf6 {[%clk 0:02:57.5]} 2. Nc3 {[%clk 0:03:01]}
2... d5 {[%clk 0:02:53.4]} 3. Bg5 {[%clk 0:03:01]} 3... Bf5 {[%clk 0:02:51.8]}
4. Qd2 {[%clk 0:03:00.6]} 4... Nbd7 {[%clk 0:02:50.1]} 5. f3 {[%clk 0:03:00.9]}
5... h6 {[%clk 0:02:46.7]} 6. Bh4 {[%clk 0:03:00.4]} 6... Rc8 {[%clk 0:02:29.2]}
7. e3 {[%clk 0:02:58.6]} 7... a6 {[%clk 0:02:27]} 8. g4 {[%clk 0:02:57.8]} 8...
Bg6 {[%clk 0:02:22.6]} 9. Nge2 {[%clk 0:02:55.7]} 9... c5 {[%clk 0:02:18.8]} 10.
Nf4 {[%clk 0:02:55]} 10... cxd4 {[%clk 0:02:13.8]} 11. exd4 {[%clk 0:02:51.8]}
11... Bh7 {[%clk 0:02:03.9]} 12. Nfxd5 {[%clk 0:02:45.6]} 12... Nxd5 {[%clk
0:02:02.8]} 13. Nxd5 {[%clk 0:02:44.8]} 13... Rxc2 {[%clk 0:02:01.8]} 14. Qb4
{[%clk 0:02:26]} 14... Nf6 {[%clk 0:01:33.6]} 15. Qa4+ {[%clk 0:02:15.8]} 15...
Rc6 {[%clk 0:01:33.1]} 16. Nb4 {[%clk 0:01:59.3]} 16... Qxd4 {[%clk 0:01:14.2]}
17. Rd1 {[%clk 0:01:59]} 17... Qe3+ {[%clk 0:01:08.3]} 18. Be2 {[%clk
0:01:57.9]} 18... b5 {[%clk 0:00:38.1]} 19. Nxc6 {[%clk 0:01:56.6]} 1-0

[Event "*** Titled Tuesday Blitz"]
[Site "Chess.com"]
[Date "2020.05.12"]
[Round "1"]
[White "AlexZambrano"]
[Black "MarcoRiehle"]
[Result "0-1"]
[WhiteElo "2293"]
[BlackElo "2614"]
[TimeControl "180+1"]
[EndTime "10:04:26 PDT"]
[Termination "MarcoRiehle won by resignation"]

1. Nf3 {[%clk 0:02:56.3]} 1... Nf6 {[%clk 0:02:58.4]} 2. d4 {[%clk 0:02:55.9]}
2... d5 {[%clk 0:02:58.1]} 3. g3 {[%clk 0:02:55.6]} 3... e6 {[%clk 0:02:57.8]}
4. Bg2 {[%clk 0:02:56]} 4... c5 {[%clk 0:02:58.4]} 5. O-O {[%clk 0:02:56.3]}
5... Nc6 {[%clk 0:02:58.9]} 6. c4 {[%clk 0:02:56.6]} 6... dxc4 {[%clk
0:02:58.9]} 7. dxc5 {[%clk 0:02:56.4]} 7... Qxd1 {[%clk 0:02:58.1]} 8. Rxd1
{[%clk 0:02:56.7]} 8... Bxc5 {[%clk 0:02:58.7]} 9. Nbd2 {[%clk 0:02:54.3]} 9...
c3 {[%clk 0:02:58.4]} 10. bxc3 {[%clk 0:02:54.3]} 10... Bd7 {[%clk 0:02:58]} 11.
Nb3 {[%clk 0:02:54.6]} 11... Be7 {[%clk 0:02:56.6]} 12. Bf4 {[%clk 0:02:54]}
12... O-O {[%clk 0:02:45.6]} 13. Rab1 {[%clk 0:02:52.1]} 13... Rac8 {[%clk
0:02:43.6]} 14. Nbd4 {[%clk 0:02:52]} 14... b6 {[%clk 0:02:35.2]} 15. Bg5 {[%clk
0:02:37.8]} 15... Nxd4 {[%clk 0:02:07.4]} 16. cxd4 {[%clk 0:02:33.9]} 16... Bc6
{[%clk 0:02:07.2]} 17. Rdc1 {[%clk 0:02:08.9]} 17... Be4 {[%clk 0:01:52.9]} 18.
Rxc8 {[%clk 0:02:06]} 18... Rxc8 {[%clk 0:01:52.4]} 19. Rc1 {[%clk 0:02:06.1]}
19... Rxc1+ {[%clk 0:01:48.1]} 20. Bxc1 {[%clk 0:02:05.5]} 20... Nd5 {[%clk
0:01:38.5]} 21. Bd2 {[%clk 0:01:32.5]} 21... Bb4 {[%clk 0:01:37.8]} 22. Kf1
{[%clk 0:01:16.8]} 22... Bxf3 {[%clk 0:01:36.6]} 23. Bxf3 {[%clk 0:01:06.6]}
23... Bxd2 {[%clk 0:01:36.1]} 0-1